Cogmind - Beta 12 @@@ ROGUE MODE // 2023.05.04 @ 12:28:10 Player: Mr Goldstein Result: Self-destructed Performance ------------- Evolutions (4) 2000 Regions Visited (14) 2800 Robots Destroyed (3) 15 Value Destroyed (99) 99 Prototype IDs (35) 700 Alien Tech Used (0) 0 Bonus (800) 800 TOTAL SCORE: 6414 Bonus ------- Pacifist 200 Aligned with FarCom 300 Met Data Miner 300 Cogmind --------- Core Integrity 557/850 Matter 300/300 Energy 100/100 System Corruption 0% Temperature Cool (0) Movement Core (50) Location -6/Lower Caves Parts ------- > --- POWER (2) -------- (None) > --- PROPULSION (5) --- (None) > --- UTILITY (6) ------ (None) > --- WEAPON (2) ------- (None) > --- INVENTORY (5) ---- (None) Peak State ------------ > --- POWER ------------ (None) > --- PROPULSION ------- Light Treads Light Treads Armored Treads Titanium Leg > --- UTILITY ---------- Improved Signal Interpreter 0b10 Alert Chip > --- WEAPON ----------- AWS/Gauss > --- INVENTORY -------- Flail Great Maul [Rating: 33] Favorites ----------- Power None Propulsion Light Treads Treads Light Treads Leg Titanium Leg Flight Unit VTOL Module Utility 0b10 Alert Chip Device Reaction Control System Processor 0b10 Alert Chip Weapon Flail Energy Cannon Guided Plasma Cannon Ballistic Gun AWS/Gauss Impact Weapon Flail Build | -11 -10 -9 -9 -9 -8 -8 -7 -7 -7 -7 -6 -6 -6 -6 ------- Run | Jun Mat Mat Min Exi Min Mat Fac Low Low Dat Pro Fac Low Low Slots Evolved 8 | . . 2 . . . 2 2 . . . . 2 . . Power 1 | . . . . . . 1 . . . . . . . . Propulsion 3 | . . 2 . . . 1 . . . . . . . . Utility 4 | . . . . . . . 2 . . . . 2 . . Weapon . | . . . . . . . . . . . . . . . Parts Attached 17 | 2 . 2 . 2 2 1 1 1 3 . 1 1 . 1 Power . | . . . . . . . . . . . . . . . Engine . | . . . . . . . . . . . . . . . Core . | . . . . . . . . . . . . . . . Reactor . | . . . . . . . . . . . . . . . Propulsion 5 | 2 . . . . 2 . . . 1 . . . . . Treads 3 | 2 . . . . 1 . . . . . . . . . Leg 1 | . . . . . 1 . . . . . . . . . Wheel . | . . . . . . . . . . . . . . . Hover . | . . . . . . . . . . . . . . . Flight 1 | . . . . . . . . . 1 . . . . . Utility 3 | . . . . 1 . . 1 . 1 . . . . . Device 1 | . . . . . . . . . 1 . . . . . Storage . | . . . . . . . . . . . . . . . Processor 2 | . . . . 1 . . 1 . . . . . . . Hackware . | . . . . . . . . . . . . . . . Protection . | . . . . . . . . . . . . . . . Artifact . | . . . . . . . . . . . . . . . Weapon 9 | . . 2 . 1 . 1 . 1 1 . 1 1 . 1 Energy Gun . | . . . . . . . . . . . . . . . Energy Cannon 1 | . . . . 1 . . . . . . . . . . Ballistic Gun 3 | . . . . . . 1 . 1 1 . . . . . Ballistic Cannon . | . . . . . . . . . . . . . . . Launcher . | . . . . . . . . . . . . . . . Special Weapon . | . . . . . . . . . . . . . . . Impact Weapon 5 | . . 2 . . . . . . . . 1 1 . 1 Slashing Weapon . | . . . . . . . . . . . . . . . Piercing Weapon . | . . . . . . . . . . . . . . . Special Melee Weapon . | . . . . . . . . . . . . . . . Unidentified Prototypes 1 | . . . . . . 1 . . . . . . . . Parts Lost 8 | . . . . . . . . 1 3 . . . 3 1 Power . | . . . . . . . . . . . . . . . Propulsion 5 | . . . . . . . . 1 3 . . . 1 . Utility 3 | . . . . . . . . . . . . . 2 1 Weapon . | . . . . . . . . . . . . . . . Highest Loss Streak 3 | . . . . . . . . 1 3 . . . 2 1 To Critical Strikes . | . . . . . . . . . . . . . . . Average Slot Usage (%) 33 | . 28 26 33 37 49 57 52 51 29 30 30 26 14 . Treads 11 | . 28 22 22 22 24 27 23 22 2 . . . . . Leg 1 | . . . . . 2 9 7 7 . . . . . . Flight 2 | . . . . . . . . . 5 7 7 6 2 . Device 1 | . . . . . . . . . . 7 7 6 . . Processor 10 | . . . . 3 11 9 14 15 15 15 15 13 10 . Ballistic Gun 1 | . . . . . . 3 . . 4 . . . . . Impact Weapon 3 | . . 4 11 11 11 9 7 5 . . . . . . Naked Turns 42 | . . . . . . . . . . . . . . 42 Heaviest Build 10 | . . 2 2 2 2 2 2 2 10 1 5 1 1 . Greatest Support 4 | 3 3 3 3 3 3 3 3 3 4 4 4 4 4 3 Greatest Overweight (x) 3 | . . . . . . . . . 3 . 1 . . . Average Overweight (x) . | . . . . . . . . . . . . . . . Largest Inventory Capacity 5 | 5 5 5 5 5 5 5 5 5 5 5 5 5 5 5 Average Capacity 5 | 5 5 5 5 5 5 5 5 5 5 5 5 5 5 5 Most Carried 5 | . . 1 . 2 2 3 3 4 5 3 4 3 3 3 Average Carried 2 | . . . . 1 2 2 3 3 3 3 2 2 3 . Final Capacity 5 | 5 5 5 5 5 5 5 5 5 5 5 5 5 5 5 Final Carried 4 | . . . . 2 2 3 3 4 3 3 3 3 3 . Class Distribution -------------------- 100% | Mutant Dominant Class ---------------- Mutant | -10/Materials Mutant | -9/Materials Mutant | -9/Mines Mutant | -9/Exiles Mutant | -8/Mines Mutant | -8/Materials Mutant | -7/Factory Mutant | -7/Lower Caves Mutant | -7/Lower Caves Mutant | -7/Data Miner Mutant | -6/Proximity Caves Mutant | -6/Factory Mutant | -6/Lower Caves Mutant | -6/Lower Caves Resources | -11 -10 -9 -9 -9 -8 -8 -7 -7 -7 -7 -6 -6 -6 -6 ----------- Run | Jun Mat Mat Min Exi Min Mat Fac Low Low Dat Pro Fac Low Low Matter Collected 329 | 193 . . . . . . . 41 80 . 10 . 5 . Remotely . | . . . . . . . . . . . . . . . Salvage Created 108 | . . 38 . . . . . 41 29 . . . . . Parts 11 | . . 1 . . . . . 7 3 . . . . . Haulers Intercepted 1 | . . 1 . . . . . . . . . . . . Recyclers Shooed . | . . . . . . . . . . . . . . . Parts Field Recycled . | . . . . . . . . . . . . . . . Retrieved Matter . | . . . . . . . . . . . . . . . Parts Self-Destructed 11 | . . . . . . . . 7 1 . 1 . 2 . Prevented . | . . . . . . . . . . . . . . . Kills | -11 -10 -9 -9 -9 -8 -8 -7 -7 -7 -7 -6 -6 -6 -6 ------- Run | Jun Mat Mat Min Exi Min Mat Fac Low Low Dat Pro Fac Low Low Combat Hostiles Destroyed 2 | . . . . . . . . 1 1 . . . . . Guns 2 | . . . . . . . . 1 1 . . . . . Classes Destroyed 3 | . . 1 . . . . . 1 1 . . . . . Hauler 1 | . . 1 . . . . . . . . . . . . Swarmer 1 | . . . . . . . . . 1 . . . . . Programmer 1 | . . . . . . . . 1 . . . . . . Best Kill Streak 1 | . . 1 . . . . . 1 1 . . . . . Combat Bots Only 1 | . . . . . . . . 1 1 . . . . . Max Kills in Single Turn 1 | . . 1 . . . . . 1 1 . . . . . Gunslinging . | . . . . . . . . . . . . . . . Exploded . | . . . . . . . . . . . . . . . Melee . | . . . . . . . . . . . . . . . Uniques/NPCs Destroyed . | . . . . . . . . . . . . . . . Combat | -11 -10 -9 -9 -9 -8 -8 -7 -7 -7 -7 -6 -6 -6 -6 -------- Run | Jun Mat Mat Min Exi Min Mat Fac Low Low Dat Pro Fac Low Low Damage Taken 1208 | . 10 202 . . . 28 114 143 292 . 56 . 140 223 Core 661 | . . 93 . . . . 28 47 162 . 38 . 75 218 Absorbed by Shields . | . . . . . . . . . . . . . . . Core Remaining (%) 87 | 100 100 . . . 76 100 . . . . 60 . . . Volleys Fired 1 | . . . . 1 . . . . . . . . . . Largest 1 | . . . . 1 . . . . . . . . . . Hottest 120 | . . . . 120 . . . . . . . . . . Shots Fired 3 | . . . . 1 . . . 1 1 . . . . . Gun 2 | . . . . . . . . 1 1 . . . . . Cannon 1 | . . . . 1 . . . . . . . . . . Launcher . | . . . . . . . . . . . . . . . Special . | . . . . . . . . . . . . . . . Kinetic 2 | . . . . . . . . 1 1 . . . . . Thermal 1 | . . . . 1 . . . . . . . . . . Explosive . | . . . . . . . . . . . . . . . Electromagnetic . | . . . . . . . . . . . . . . . Robot Hit Streak 2 | . . . . . . . . 1 2 . . . . . Robot Miss Streak . | . . . . . . . . . . . . . . . Penetration Max . | . . . . . . . . . . . . . . . Secondary Targets . | . . . . . . . . . . . . . . . Autonomous 2 | . . . . . . . . 1 1 . . . . . Shots Hit Robots 5 | . . 2 . . . . . 1 1 . . . . 1 Core Hits 3 | . . . . . . . . 1 1 . . . . 1 Critical Kills . | . . . . . . . . . . . . . . . Critical Parts Destroyed . | . . . . . . . . . . . . . . . Critical Strikes . | . . . . . . . . . . . . . . . Melee Attacks 11 | . . 5 . . . . . . . . 2 1 . 3 Impact 11 | . . 5 . . . . . . . . 2 1 . 3 Slashing . | . . . . . . . . . . . . . . . Piercing . | . . . . . . . . . . . . . . . Sneak Attacks 2 | . . 2 . . . . . . . . . . . . Combat Hostiles . | . . . . . . . . . . . . . . . Follow-up Attacks . | . . . . . . . . . . . . . . . Damage Inflicted 277 | . . 136 . . . . 8 36 38 . . . . 59 Guns 69 | . . . . . . . . 36 33 . . . . . Cannons . | . . . . . . . . . . . . . . . Explosions . | . . . . . . . . . . . . . . . Melee 164 | . . 136 . . . . . . . . . . . 28 Ramming 44 | . . . . . . . 8 . 5 . . . . 31 Kinetic 69 | . . . . . . . . 36 33 . . . . . Thermal . | . . . . . . . . . . . . . . . Explosive . | . . . . . . . . . . . . . . . Electromagnetic . | . . . . . . . . . . . . . . . Impact 164 | . . 136 . . . . . . . . . . . 28 Slashing . | . . . . . . . . . . . . . . . Piercing . | . . . . . . . . . . . . . . . Highest Corruption . | . . . . . . . . . . . . . . . Average Corruption . | . . . . . . . . . . . . . . . Corruption Purged . | . . . . . . . . . . . . . . . Corruption Blocked . | . . . . . . . . . . . . . . . Overload Shots . | . . . . . . . . . . . . . . . Overflow Damage 34 | . . 30 . . . . . . . . . . . 4 Projectiles . | . . . . . . . . . . . . . . . Explosions . | . . . . . . . . . . . . . . . Melee 34 | . . 30 . . . . . . . . . . . 4 Knockbacks . | . . . . . . . . . . . . . . . Impact . | . . . . . . . . . . . . . . . Kinetic . | . . . . . . . . . . . . . . . Secondary . | . . . . . . . . . . . . . . . Self-Inflicted Damage 20 | . . . . . . . 4 . 2 . . . . 14 Shots . | . . . . . . . . . . . . . . . Rammed 7 | . . . . . . . 1 . 1 . . . . 5 Targets Rammed 7 | . . . . . . . 1 . 1 . . . . 5 Kicked . | . . . . . . . . . . . . . . . Crushed . | . . . . . . . . . . . . . . . Highest Temperature 64 | . . . . 64 . . . . . . . . . . Average Temperature 35 | . . . . 35 . . . . . . . . . . Received Heat Transfer 273 | . 6 54 . . . 18 24 63 63 . 45 . . . Siege Activations . | . . . . . . . . . . . . . . . Robots Corrupted . | . . . . . . . . . . . . . . . Combat Hostiles . | . . . . . . . . . . . . . . . Parts Fried . | . . . . . . . . . . . . . . . Impact Corruptions 3 | . . 2 . . . . . . . . . . . 1 Robots Melted . | . . . . . . . . . . . . . . . Combat Hostiles . | . . . . . . . . . . . . . . . Parts Melted . | . . . . . . . . . . . . . . . Heat Transferred . | . . . . . . . . . . . . . . . Parts Sabotaged . | . . . . . . . . . . . . . . . Parts Stolen 5 | . . . . . . . . . 1 . . . . 4 Parts Stripped . | . . . . . . . . . . . . . . . Power Chain Reactions . | . . . . . . . . . . . . . . . Missiles Intercepted . | . . . . . . . . . . . . . . . Alert | -11 -10 -9 -9 -9 -8 -8 -7 -7 -7 -7 -6 -6 -6 -6 ------- Run | Jun Mat Mat Min Exi Min Mat Fac Low Low Dat Pro Fac Low Low Peak Influence 404 | . 15 27 10 . . 12 29 . . . . 404 . . Initial 380 | . . 5 10 . . . 4 . . . . 380 . . Average 35 | . 6 21 10 . . 1 10 . . . . 400 . . Maximum Alert Level 2 | . . . . . . . . . . . . 2 . . Low Security (%) 93 | 100 100 100 100 . 100 100 100 . . . . . . . Level 1 1 | . . . . . . . . . . . . 19 . . Level 2 5 | . . . . . . . . . . . . 80 . . Level 3 . | . . . . . . . . . . . . . . . Level 4 . | . . . . . . . . . . . . . . . Level 5 . | . . . . . . . . . . . . . . . High Security . | . . . . . . . . . . . . . . . Max Security . | . . . . . . . . . . . . . . . Squads Dispatched 2 | . . 1 . . . 1 . . . . . . . . Investigation 1 | . . . . . . 1 . . . . . . . . Extermination . | . . . . . . . . . . . . . . . Reinforcement 1 | . . 1 . . . . . . . . . . . . Assault . | . . . . . . . . . . . . . . . Garrison . | . . . . . . . . . . . . . . . Intercept . | . . . . . . . . . . . . . . . Searches Triggered . | . . . . . . . . . . . . . . . Construction Impeded . | . . . . . . . . . . . . . . . Haulers Reinforced . | . . . . . . . . . . . . . . . Active Scanning Responses . | . . . . . . . . . . . . . . . Cargo Convoy Interrupts . | . . . . . . . . . . . . . . . Stealth | -11 -10 -9 -9 -9 -8 -8 -7 -7 -7 -7 -6 -6 -6 -6 --------- Run | Jun Mat Mat Min Exi Min Mat Fac Low Low Dat Pro Fac Low Low Distress Signals 2 | . . 1 . . . . . . . . 1 . . . Communications Jammed . | . . . . . . . . . . . . . . . Distress Signals . | . . . . . . . . . . . . . . . Times Spotted 74 | . 2 10 . . . 3 1 5 19 . 15 1 7 11 Peak Tracking Total 9 | . 2 9 . . . 5 1 4 9 . 7 1 6 4 Tactical Retreats 12 | . . . . . . . . . 3 . 5 . 3 1 Traps | -11 -10 -9 -9 -9 -8 -8 -7 -7 -7 -7 -6 -6 -6 -6 ------- Run | Jun Mat Mat Min Exi Min Mat Fac Low Low Dat Pro Fac Low Low Traps Triggered 1 | . . . . . . 1 . . . . . . . . Indirectly . | . . . . . . . . . . . . . . . Trap Hack Attempts . | . . . . . . . . . . . . . . . Triggered . | . . . . . . . . . . . . . . . Disarmed . | . . . . . . . . . . . . . . . Reprogrammed . | . . . . . . . . . . . . . . . Reused . | . . . . . . . . . . . . . . . Traps Extracted . | . . . . . . . . . . . . . . . Installed . | . . . . . . . . . . . . . . . Triggered . | . . . . . . . . . . . . . . . Machines | -11 -10 -9 -9 -9 -8 -8 -7 -7 -7 -7 -6 -6 -6 -6 ---------- Run | Jun Mat Mat Min Exi Min Mat Fac Low Low Dat Pro Fac Low Low Machines Disabled 1 | . . . . . . . . . . . . 1 . . Max in Single Turn 1 | . . . . . . . . . . . . 1 . . Machines Repaired . | . . . . . . . . . . . . . . . Machines Sabotaged . | . . . . . . . . . . . . . . . Overloaded Fab Kills . | . . . . . . . . . . . . . . . Hacking | -11 -10 -9 -9 -9 -8 -8 -7 -7 -7 -7 -6 -6 -6 -6 --------- Run | Jun Mat Mat Min Exi Min Mat Fac Low Low Dat Pro Fac Low Low Machines Accessed 8 | . . . . 1 . 1 1 . 1 3 . 1 . . Terminals 3 | . . . . . . 1 1 . . . . 1 . . Fabricators . | . . . . . . . . . . . . . . . Repair Stations . | . . . . . . . . . . . . . . . Recycling Units . | . . . . . . . . . . . . . . . Scanalyzers . | . . . . . . . . . . . . . . . Garrison Access . | . . . . . . . . . . . . . . . Total Hacks 24 | . . . . 1 . 2 1 . 1 17 . 2 . . Successful 20 | . . . . 1 . . 1 . 1 17 . . . . Failed 4 | . . . . . . 2 . . . . . 2 . . Catastrophic . | . . . . . . . . . . . . . . . Database Lockouts . | . . . . . . . . . . . . . . . Manual 1 | . . . . 1 . . . . . . . . . . Terminals 5 | . . . . . . 2 1 . . . . 2 . . Fabricators . | . . . . . . . . . . . . . . . Repair Stations . | . . . . . . . . . . . . . . . Recycling Units . | . . . . . . . . . . . . . . . Scanalyzers . | . . . . . . . . . . . . . . . Garrison Access . | . . . . . . . . . . . . . . . Terminal Hacks 20 | . . . . 1 . . 1 . 1 17 . . . . Record 2 | . . . . . . . . . . 2 . . . . Part Schematic 9 | . . . . . . . . . . 9 . . . . Robot Schematic 3 | . . . . . . . . . . 3 . . . . Prototype ID Bank 3 | . . . . . . . . . . 3 . . . . Open Door 1 | . . . . . . . . . 1 . . . . . Branch Access Points 1 | . . . . . . . 1 . . . . . . . EX-Prototype ID Bank 1 | . . . . 1 . . . . . . . . . . Fabricator Hacks . | . . . . . . . . . . . . . . . Repair Station Hacks . | . . . . . . . . . . . . . . . Recycling Unit Hacks . | . . . . . . . . . . . . . . . Scanalyzer . | . . . . . . . . . . . . . . . Garrison Access Hacks . | . . . . . . . . . . . . . . . Unauthorized Hacks . | . . . . . . . . . . . . . . . Terminals . | . . . . . . . . . . . . . . . Fabricators . | . . . . . . . . . . . . . . . Repair Stations . | . . . . . . . . . . . . . . . Recycling Units . | . . . . . . . . . . . . . . . Scanalyzers . | . . . . . . . . . . . . . . . Garrison Access . | . . . . . . . . . . . . . . . Data Cores Recovered . | . . . . . . . . . . . . . . . Used . | . . . . . . . . . . . . . . . Hacking Detections 3 | . . . . . . 1 1 . . . . 1 . . Full Trace Events . | . . . . . . . . . . . . . . . Feedback Events . | . . . . . . . . . . . . . . . Feedback Blocked . | . . . . . . . . . . . . . . . Robot Schematics Acquired 3 | . . . . . . . . . . 3 . . . . Robots Built . | . . . . . . . . . . . . . . . Authchips . | . . . . . . . . . . . . . . . Time . | . . . . . . . . . . . . . . . Total Robot Build Rating . | . . . . . . . . . . . . . . . Part Schematics Acquired 9 | . . . . . . . . . . 9 . . . . Parts Built . | . . . . . . . . . . . . . . . Authchips . | . . . . . . . . . . . . . . . Time . | . . . . . . . . . . . . . . . Total Part Build Rating . | . . . . . . . . . . . . . . . Parts Repaired . | . . . . . . . . . . . . . . . Time . | . . . . . . . . . . . . . . . Parts Recycled . | . . . . . . . . . . . . . . . Recycled Matter . | . . . . . . . . . . . . . . . Retrieved Matter . | . . . . . . . . . . . . . . . Retrieved Components . | . . . . . . . . . . . . . . . Parts Scanalyzed . | . . . . . . . . . . . . . . . Part Schematics Acquired . | . . . . . . . . . . . . . . . Parts Damaged . | . . . . . . . . . . . . . . . Bothacking | -11 -10 -9 -9 -9 -8 -8 -7 -7 -7 -7 -6 -6 -6 -6 ------------ Run | Jun Mat Mat Min Exi Min Mat Fac Low Low Dat Pro Fac Low Low Used RIF Installer . | . . . . . . . . . . . . . . . Robots Hacked . | . . . . . . . . . . . . . . . Non-combat . | . . . . . . . . . . . . . . . Combat . | . . . . . . . . . . . . . . . Robot Hacks Applied . | . . . . . . . . . . . . . . . Relay Couplers Released . | . . . . . . . . . . . . . . . Fabnet Peak Effective % . | . . . . . . . . . . . . . . . Robots Rewired . | . . . . . . . . . . . . . . . Allies Hacked . | . . . . . . . . . . . . . . . Hacks Repelled . | . . . . . . . . . . . . . . . Allies | -11 -10 -9 -9 -9 -8 -8 -7 -7 -7 -7 -6 -6 -6 -6 -------- Run | Jun Mat Mat Min Exi Min Mat Fac Low Low Dat Pro Fac Low Low Total Allies 1 | . . . . . . . . . . . 1 . . . Largest Group 1 | . . . . . . . . . . . 1 . . . Highest-Rated Group 96 | . . . . . . . . . . . 96 . . . Highest-Rated Ally 96 | . . . . . . . . . . . 96 . . . Total Orders . | . . . . . . . . . . . . . . . Ally Attacks 14 | . . . . . . . . . . . 14 . . . Total Damage 226 | . . . . . . . . . . . 226 . . . Kills 1 | . . . . . . . . . . . 1 . . . Allies Corrupted . | . . . . . . . . . . . . . . . Allies Melted . | . . . . . . . . . . . . . . . Intel | -11 -10 -9 -9 -9 -8 -8 -7 -7 -7 -7 -6 -6 -6 -6 ------- Run | Jun Mat Mat Min Exi Min Mat Fac Low Low Dat Pro Fac Low Low Robot Analysis Total . | . . . . . . . . . . . . . . . Derelict Logs Recovered 1 | . . . . . . . . . . . 1 . . . Drone Launches . | . . . . . . . . . . . . . . . Drone Recoveries . | . . . . . . . . . . . . . . . Exploration | -11 -10 -9 -9 -9 -8 -8 -7 -7 -7 -7 -6 -6 -6 -6 ------------- Run | Jun Mat Mat Min Exi Min Mat Fac Low Low Dat Pro Fac Low Low Turns Passed 1356 | 16 28 72 43 152 41 33 137 112 346 28 169 26 96 57 Spaces Moved 2486 | 27 56 112 85 290 75 60 268 210 397 79 454 61 227 85 Core 1540 | 27 56 112 85 290 75 60 268 210 160 . . . 112 85 Treads . | . . . . . . . . . . . . . . . Legs . | . . . . . . . . . . . . . . . Wheels . | . . . . . . . . . . . . . . . Hover . | . . . . . . . . . . . . . . . Flight 946 | . . . . . . . . . 237 79 454 61 115 . Fastest Speed 35 | 50 50 50 50 50 50 50 50 50 35 35 35 35 35 50 Average Speed 51 | 50 50 50 50 50 50 50 50 50 85 35 35 35 42 50 Slowest Speed 200 | 50 50 50 50 50 50 50 50 50 200 35 115 35 50 50 Overloaded Moves . | . . . . . . . . . . . . . . . Propulsion Burnouts . | . . . . . . . . . . . . . . . Robots Hopped 5 | . . . . . . . . . 3 . 2 . . . Cave-ins Triggered . | . . . . . . . . . . . . . . . Exploration Rate (%) 32 | 4 19 22 28 60 30 11 8 49 47 70 74 3 47 12 Regions Visited 14 Branch Regions 9 Pre-discovered Areas 1 | . . . . . . . . . . 1 . . . . Known Exits Taken 7 | . . . . . . . 1 1 1 1 1 1 1 . Unknown Exits Taken 7 | 1 1 1 1 1 1 1 . . . . . . . . Scrap Searched 6 | . . . 1 . . . . . 2 . 2 . 1 . Spaces Dug 2 | . . . . . . . . . . . 2 . . . Terrain Destroyed 4 | . . . . . . . . 2 . . 2 . . . Melee 2 | . . . . . . . . . . . 2 . . . Projectile 2 | . . . . . . . . 2 . . . . . . AOE . | . . . . . . . . . . . . . . . Terrain Rammed . | . . . . . . . . . . . . . . . Walls Destroyed . | . . . . . . . . . . . . . . . Machines Disabled . | . . . . . . . . . . . . . . . Actions | -11 -10 -9 -9 -9 -8 -8 -7 -7 -7 -7 -6 -6 -6 -6 --------- Run | Jun Mat Mat Min Exi Min Mat Fac Low Low Dat Pro Fac Low Low Total 2524 | 28 55 120 84 294 76 62 270 217 400 78 457 63 226 94 Wait 7 | . . . . . . . 1 5 1 . . . . . Move 2463 | 26 55 111 84 289 74 59 268 209 390 78 449 60 226 85 Hop 5 | . . . . . . . . . 3 . 2 . . . Pick Up 5 | . . 1 . 1 . 1 . . 1 . 1 . . . Fast Attach 10 | 2 . . . 2 2 1 1 . 2 . . . . . Attach 7 | . . 2 . . . . . 1 1 . 1 1 . 1 Detach 6 | . . 1 . . . . . 2 1 . 1 1 . . Swap . | . . . . . . . . . . . . . . . Drop 3 | . . . . 1 . 1 . . . . 1 . . . Fire 1 | . . . . 1 . . . . . . . . . . Melee 11 | . . 5 . . . . . . . . 2 1 . 3 Ram 6 | . . . . . . . . . 1 . . . . 5 Kick . | . . . . . . . . . . . . . . . Crush . | . . . . . . . . . . . . . . . Escape Stasis . | . . . . . . . . . . . . . . . Rewire . | . . . . . . . . . . . . . . . Trap . | . . . . . . . . . . . . . . . Miscellaneous . | . . . . . . . . . . . . . . . Route ------- -11/Junkyard -10/Materials -9/Materials -9/Mines (discovered 2 exits: *Mat / *Exi) -9/Exiles -8/Mines -8/Materials -7/Factory (discovered 5 exits: *Fac / Sto x2 / *Low x2) -7/Lower Caves -7/Lower Caves -7/Data Miner -6/Proximity Caves -6/Factory -6/Lower Caves -6/Lower Caves (discovered 1 exit: [*Fac]) History --------- Turn | Location | Event 4 | -11/Junkyard | Discovered new exit (range 15) 17 | -11/Junkyard | Entered Materials 42 | -10/Materials | Discovered new exit (range 3) 45 | -10/Materials | Entered another Materials area 45 | -9/Materials | Evolved 2 slots: Propulsion x2 113 | -9/Materials | Discovered new exit (range 5) 117 | -9/Materials | Entered Mines 143 | -9/Mines | Discovered new exit (range 5) 158 | -9/Mines | Deemed a non-threat by the Exiles lab entrance 158 | -9/Mines | Discovered new exit (range 5) 160 | -9/Mines | Entered Exiles 174 | -9/Exiles | Met 8R-AWN 181 | -9/Exiles | Met EX-HEX 195 | -9/Exiles | Met EX-BIN 201 | -9/Exiles | Aligned with FarCom system 201 | -9/Exiles | Given EX-Vault access code 213 | -9/Exiles | Opened EX-Vault 217 | -9/Exiles | Found Gui. Plasma Cannon 222 | -9/Exiles | Found AWS/Gauss 233 | -9/Exiles | Warned to stay clear of 0b10 Research branches 239 | -9/Exiles | Exiles lab attacked by MAIN.C 264 | -9/Exiles | Found 0b10 Alert Chip 304 | -9/Exiles | Build established: Mutant 306 | -9/Exiles | Discovered new exit (range 14) 312 | -9/Exiles | Stole two prototypes: 0b10 Alert Chip, AWS/Gauss 312 | -9/Exiles | Entered Mines 350 | -8/Mines | Discovered new exit (range 7) 353 | -8/Mines | Entered Materials 353 | -8/Materials | Evolved 2 slots: Power x1, Propulsion x1 381 | -8/Materials | Discovered new exit (range 12) 386 | -8/Materials | Entered Factory 386 | -7/Factory | Evolved 2 slots: Utility x2 388 | -7/Factory | FarCom data flow suspended 410 | -7/Factory | Discovered new exit (range 15) 419 | -7/Factory | Identified exit to Factory 461 | -7/Factory | Identified exit to Storage 461 | -7/Factory | Identified exit to Lower Caves 523 | -7/Factory | Entered Lower Caves 526 | -7/Lower Caves | Encountered a Warlord checkpoint 633 | -7/Lower Caves | Discovered new exit (range 5) 635 | -7/Lower Caves | Identified exit to Lower Caves 635 | -7/Lower Caves | Entered another Lower Caves area 636 | -7/Lower Caves | Encountered a Warlord checkpoint 734 | -7/Lower Caves | Lost 3 parts (3n) 953 | -7/Lower Caves | Spotted 58-923(f) 954 | -7/Lower Caves | Encountered a Master Thief 954 | -7/Lower Caves | Spotted A7-H0C(f) 954 | -7/Lower Caves | Spotted YA-TDS(f) 955 | -7/Lower Caves | Encountered a Master Thief 955 | -7/Lower Caves | Encountered a Master Thief 955 | -7/Lower Caves | AWS/Gauss stolen by Master Thief 955 | -7/Lower Caves | Spotted T0-CQX(f) 956 | -7/Lower Caves | Encountered a Master Thief 980 | -7/Lower Caves | Discovered new exit (range 3) 981 | -7/Lower Caves | Identified exit to Data Miner 981 | -7/Lower Caves | Entered Data Miner 981 | -7/Data Miner | Discovered new exit (range 6) 988 | -7/Data Miner | Met Data Miner 998 | -7/Data Miner | Acquired the access code to Warlord's prototype stash 998 | -7/Data Miner | Learned location of Section 7 (-2) 1001 | -7/Data Miner | Received God Mode back door access code from Data Miner 1008 | -7/Data Miner | Identified exit to Proximity Caves 1009 | -7/Data Miner | Entered Proximity Caves 1021 | -6/Proximity Caves | Spotter reported a threat 1074 | -6/Proximity Caves | Spotter reported a threat 1156 | -6/Proximity Caves | Learned Factory garrison access intel 1175 | -6/Proximity Caves | Discovered exit to Factory (range 9) 1178 | -6/Proximity Caves | Entered Factory 1178 | -6/Factory | Evolved 2 slots: Utility x2 1179 | -6/Factory | Loaded intel: 4 garrison access locations 1201 | -6/Factory | Discovered new exit (range 9) 1204 | -6/Factory | Identified exit to Lower Caves 1204 | -6/Factory | Entered Lower Caves 1205 | -6/Lower Caves | Spotted B-75 Beast 1299 | -6/Lower Caves | Discovered new exit (range 5) 1300 | -6/Lower Caves | Identified exit to Lower Caves 1300 | -6/Lower Caves | Entered another Lower Caves area 1300 | -6/Lower Caves | Spotted TI-E82(f) 1300 | -6/Lower Caves | Spotted IF-W5T(f) 1300 | -6/Lower Caves | Spotted V6-V5Z(f) 1301 | -6/Lower Caves | Encountered a Master Thief 1301 | -6/Lower Caves | Encountered a Master Thief 1301 | -6/Lower Caves | Encountered a Master Thief 1301 | -6/Lower Caves | Antimatter Reactor stolen by Master Thief 1308 | -6/Lower Caves | Discovered new exit (range 13) 1313 | -6/Lower Caves | Great Maul stolen by Master Thief 1319 | -6/Lower Caves | Flail stolen by Master Thief 1357 | -6/Lower Caves | Self-destructed Last Messages --------------- 01243_ S-27 Virus destroyed. 01243_ Acquired 4 matter. 01244_ VTOL Module destroyed. 01245_ Searching scrap... 01245_ Found Plasma Rifle. 01245_ Found 12 Matter. 01261_ AA-ZI3(k) breaks down the debris. 01276_ 0b10 Alert Chip destroyed. 01299_ EXIT=FOUND 01300_ EXIT=IDENTIFIED: LOWER CAVES LOCATION=LOWER CAVES GOAL=ESCAPE 01301_ Antimatter Reactor stolen. 01308_ EXIT=FOUND 01309_ Imp. Signal Interpreter ripped off. 01313_ Great Maul stolen. 01319_ Destroyed Adv. Weight Redist. System. 01319_ IF-W5T(f) system corrupted by crushing effect. 01319_ Flail ripped off. 01322_ Slammed into IF-W5T(f). Map ----- +----------------------------------------------------+ | ?????????????????????????????????????????????????? | | ?????????????????????????????????????????????????? | | ??????????????????????????????##?????????????????? | | ??????????????????????#??????## #??###########???? | | ?????????????????????## ##### #?# ## ##??? | | ?????????????????????# ## #??? | | ???????????????????? #?## | | ???????????????????? < ### | | ???????????????????? %### ### | | ???????????????????? #?## ## | | ????????????????????? ###### ##??# | | ?????????????????????## ????????## ##??# #### | | ??????????????????????????????????# % ##?# #?## | | ??????????????????????????????????# #?# #??? | | ??????????????????????????????????# ### ##?? | | ??????????????????????????????????# ##? | | ?????????????????????????????????## #? | | ????????????????????????????###### #### | | ???????????????????????????## #??# | | ???????????????????????????# #??# ## # | | ???????????????????????##### #??###?### | | ??????????????????????## #????????? | | ?????????????????????## #???????? | | ????????????????????## ## #??????? | | ????????????????????# #### #?????? | | ????????????????????#### @#??## #?????? | | ???????????????????????## #??# # #?????? | | ????????????????????????# ##??# ## ##?????? | | ????????????????????????###???# ### #??????? | | ??????????????????????????????# #?## #??????? | | ??????????????????????????????# #??# ?????? | | ?????????????????????????????? ??? ?????? | | ??????????????????????????????####??? #????? | | ????????????????????????????????????? #?????? | | ????????????????????????????????????? ???????? | | ?????????????????????????????????????? ??????????? | | ?????????????????????????????????????????????????? | | ?????????????????????????????????????????????????? | | ?????????????????????????????????????????????????? | | ?????????????????????????????????????????????????? | | ?????????????????????????????????????????????????? | | ?????????????????????????????????????????????????? | | ?????????????????????????????????????????????????? | | ?????????????????????????????????????????????????? | | ?????????????????????????????????????????????????? | | ?????????????????????????????????????????????????? | | ?????????????????????????????????????????????????? | | ?????????????????????????????????????????????????? | | ?????????????????????????????????????????????????? | | ?????????????????????????????????????????????????? | +----------------------------------------------------+ Best States ------------- Heat Dissipation 37 Energy Generation 5 Energy Capacity 100 Matter Stores 300 Matter Capacity 300 Sight Range 16 Terrain Scan Density 10 Evasion (%) 71 Item Schematics ----------------- Combat Drone Bay | -7/Data Miner | Free Lgt. Regenerative Plating | -7/Data Miner | Free Cld. Aerolev Unit | -7/Data Miner | Free Thermal Defense Suite | -7/Data Miner | Free Cmb. Gravmag System | -7/Data Miner | Free Recoil Nullifier | -7/Data Miner | Free Mass Driver | -7/Data Miner | Free Hvy. Phase Cannon | -7/Data Miner | Free Imp. Heavy Machine Gun | -7/Data Miner | Free Robot Schematics ------------------ E-15 Imp | -7/Data Miner | Free H-55 Commando | -7/Data Miner | Free M-14 Sweeper | -7/Data Miner | Free Fabricated ------------ Nothing Alien Tech Used ----------------- None Achievements -------------- None Challenges ------------ None Game ------ Seed NovaCouplerScreen Manual? 0 Play Time 00:13:58 Cumulative 173.3 hours Start 2023.05.04 @ 12:12:19 End 2023.05.04 @ 12:28:10 Sessions 1 Manual Loads 0 Difficulty Rogue Special Mode None Game No. 513 Rogue 513 Adventurer 0 Explorer 0 Win Type - Total 8 Types 7/0/0/1/0/0/0/0/0 Lore% 70 Gallery% 74 Achievement% 65 Wizard Run 0 Options --------- ASCII 0 Keyboard 0 Movement Numpad Keybinds 0 Fullscreen 1 Font 16/SmallcapsGlow Map View 75x55 Tactical HUD 1 Map Filters NONE Filters NONE Steam 1 RUN: 0766e86f-5f63-432a-a223-9fe5d88adc54